Cogmind - Beta 14 @@@ ROGUE MODE // 2024.09.27 @ 21:20:50 Player: Corvi Result: Self-destructed Performance ------------- Evolutions (2) 1000 Regions Visited (5) 1000 Robots Destroyed (31) 155 Value Destroyed (736) 736 Prototype IDs (27) 540 Alien Tech Used (0) 0 Bonus (300) 300 TOTAL SCORE: 3731 Bonus ------- Aligned with FarCom 300 Cogmind --------- Core Integrity 501/550 Matter 255/300 Energy 24/100 System Corruption 0% Temperature Cool (1) Movement Flying (50) Location -8/Materials Parts ------- > --- POWER (1) -------- (None) > --- PROPULSION (4) --- Flying Fortress v7 > --- UTILITY (4) ------ Heat Sink Large Storage Unit Hacking Suite > --- WEAPON (2) ------- Lightning Gun Spear > --- INVENTORY (15) --- Nuclear Core Nuclear Core Medium Storage Unit Structural Scanner Trap Scanner Actuator Array Utility Shielding Lightning Gun Lightning Gun Lightning Gun Mini Grenade Launcher Mini Grenade Launcher Mini Grenade Launcher Peak State ------------ > --- POWER ------------ Light Ion Engine > --- PROPULSION ------- Flying Fortress v7 > --- UTILITY ---------- Heat Sink Large Storage Unit Hacking Suite Splice Drone Bay > --- WEAPON ----------- Gatling Laser Gatling Laser > --- INVENTORY -------- Nuclear Core Nuclear Core Nuclear Core Light Nuclear Core Light Treads Light Treads Gatling Laser Gatling Laser Makeshift Shrapnel Gun Mini Grenade Launcher Mini Grenade Launcher Mini Grenade Launcher Mining Claw [Rating: 56] Favorites ----------- Power Light Ion Engine Engine Light Ion Engine Power Core Light Nuclear Core Propulsion Light Treads Treads Light Treads Leg Aluminum Leg Hover Unit Hover Unit Flight Unit Flying Fortress v7 Utility Heat Sink Device Heat Sink Storage Large Storage Unit Hackware Hacking Suite Protection Insulated Plating Weapon Spread Laser Energy Gun Spread Laser Energy Cannon Advanced Beam Cannon Ballistic Gun Light Assault Rifle Slashing Weapon Mining Claw Piercing Weapon Spear Build | -11 -10 -10 -10 -9 -8 ------- Run | Yrd Mat Min Exi Min Mat Slots Evolved 4 | . . . . . 4 Power . | . . . . . . Propulsion 2 | . . . . . 2 Utility 2 | . . . . . 2 Weapon . | . . . . . . Parts Attached 54 | 6 22 4 1 1 20 Power 10 | 1 6 1 . . 2 Engine 9 | 1 6 1 . . 1 Core 1 | . . . . . 1 Reactor . | . . . . . . Propulsion 12 | 2 7 2 . . 1 Treads 9 | 2 5 2 . . . Leg 1 | . 1 . . . . Wheel . | . . . . . . Hover 1 | . 1 . . . . Flight 1 | . . . . . 1 Utility 12 | 1 3 1 . 1 6 Device 8 | . 2 1 . 1 4 Storage 2 | 1 1 . . . . Processor . | . . . . . . Hackware 1 | . . . . . 1 Protection 1 | . . . . . 1 Artifact . | . . . . . . Weapon 20 | 2 6 . 1 . 11 Energy Gun 10 | . 3 . 1 . 6 Energy Cannon 1 | . 1 . . . . Ballistic Gun 4 | 2 2 . . . . Ballistic Cannon . | . . . . . . Launcher . | . . . . . . Special Weapon . | . . . . . . Impact Weapon . | . . . . . . Slashing Weapon 3 | . . . . . 3 Piercing Weapon 2 | . . . . . 2 Special Melee Weapon . | . . . . . . Unidentified Prototypes 2 | . 1 . . 1 . Parts Lost 6 | . 3 . . . 3 Power 2 | . . . . . 2 Propulsion 1 | . 1 . . . . Utility 2 | . 1 . . . 1 Weapon 1 | . 1 . . . . Highest Loss Streak 2 | . 2 . . . 2 To Critical Strikes . | . . . . . . Average Slot Usage (%) 92 | . 96 100 100 100 71 Engine 12 | . 13 14 14 14 5 Treads 19 | . 22 28 28 28 . Leg 1 | . 3 . . . . Flight 1 | . . . . . 9 Device 13 | . 12 14 14 14 12 Storage 12 | . 14 14 14 14 9 Hackware 1 | . . . . . 8 Protection 1 | . . . . . 5 Energy Gun 19 | . 14 28 28 28 14 Ballistic Gun 6 | . 13 . . . . Peak Build Rating 56 | 6 10 11 14 20 56 Average Rating 18 | 5 8 10 12 14 52 On Entrance 10 | . 6 10 11 14 20 Naked Turns . | . . . . . . Heaviest Build 40 | 11 32 30 30 37 40 Greatest Support 50 | 40 40 40 40 40 50 Greatest Overweight (x) 1 | . 1 1 . . . Average Overweight (x) . | . . . . . . Largest Inventory Capacity 15 | 8 15 15 15 15 15 Average Capacity 12 | 7 9 15 15 15 15 Most Carried 15 | 2 8 10 15 15 15 Average Carried 9 | 1 7 8 13 15 14 Final Capacity 15 | 8 15 15 15 15 15 Final Carried 15 | 2 8 10 15 15 13 Class Distribution -------------------- 55% | Mutant 40% | Scavenger-Mutant 4% | Scout Dominant Class ---------------- Mutant | -10/Materials Scavenger-Mutant | -10/Mines Scavenger-Mutant | -10/Exiles Scavenger-Mutant | -9/Mines Mutant | -8/Materials Resources | -11 -10 -10 -10 -9 -8 ----------- Run | Yrd Mat Min Exi Min Mat Matter Collected 787 | 260 327 40 . . 160 Remotely . | . . . . . . Salvage Created 788 | 62 478 . . . 248 Parts 70 | 1 55 . . . 14 Haulers Intercepted 1 | . 1 . . . . Recyclers Shooed . | . . . . . . Parts Field Recycled . | . . . . . . Retrieved Matter . | . . . . . . Parts Self-Destructed . | . . . . . . Prevented . | . . . . . . Kills | -11 -10 -10 -10 -9 -8 ------- Run | Yrd Mat Min Exi Min Mat Combat Hostiles Destroyed 25 | . 18 . . . 7 Guns 24 | . 18 . . . 6 AOE 1 | . . . . . 1 Classes Destroyed 8 | 1 5 . . . 2 Hauler 1 | . 1 . . . . Recycler 1 | 1 . . . . . Operator 2 | . 1 . . . 1 Watcher 2 | . 1 . . . 1 Swarmer 11 | . 9 . . . 2 Cutter 1 | . . . . . 1 Grunt 12 | . 9 . . . 3 Sentry 1 | . . . . . 1 Best Kill Streak 3 | 1 3 . . . 3 Combat Bots Only 3 | . 3 . . . 3 Max Kills in Single Turn 2 | 1 2 . . . 1 Gunslinging . | . . . . . . Exploded 1 | . . . . . 1 Melee . | . . . . . . Uniques/NPCs Destroyed . | . . . . . . Combat | -11 -10 -10 -10 -9 -8 -------- Run | Yrd Mat Min Exi Min Mat Hostile Shots Fired 141 | . 91 6 . . 44 Missed 48 | . 26 2 . . 20 Damage Taken 1433 | . 688 54 . . 691 Core 170 | . 121 . . . 49 Absorbed by Shields . | . . . . . . Core Remaining (%) 75 | 100 . . . 51 . Volleys Fired 80 | . 57 . . . 23 Largest 2 | . 2 . . . 2 Hottest 160 | . 130 . . . 160 Shots Fired 154 | . 114 . . . 40 Gun 154 | . 114 . . . 40 Cannon . | . . . . . . Launcher . | . . . . . . Special . | . . . . . . Kinetic 76 | . 76 . . . . Thermal 64 | . 38 . . . 26 Explosive . | . . . . . . Electromagnetic 14 | . . . . . 14 Robot Hit Streak 16 | . 9 . . . 16 Robot Miss Streak 7 | . 7 . . . 3 Penetration Max . | . . . . . . Secondary Targets 4 | . 4 . . . . Max Gunslinging Chain 1 | . 1 . . . . Shots Hit Robots 119 | . 82 . . . 37 Core Hits 88 | 1 58 . . . 29 Critical Kills . | . . . . . . Critical Parts Destroyed . | . . . . . . Critical Strikes . | . . . . . . Melee Attacks 15 | . . . . . 15 Impact . | . . . . . . Slashing 14 | . . . . . 14 Piercing 1 | . . . . . 1 Sneak Attacks . | . . . . . . Combat Hostiles . | . . . . . . Follow-up Attacks . | . . . . . . Damage Inflicted 1728 | 1 884 . . . 843 Guns 1604 | . 884 . . . 720 Cannons . | . . . . . . Explosions 95 | . . . . . 95 Melee 28 | . . . . . 28 Ramming 1 | 1 . . . . . Kinetic 494 | . 494 . . . . Thermal 964 | . 390 . . . 574 Explosive . | . . . . . . Electromagnetic 241 | . . . . . 241 Impact . | . . . . . . Slashing 28 | . . . . . 28 Piercing . | . . . . . . Highest Corruption . | . . . . . . Average Corruption . | . . . . . . Corruption Purged . | . . . . . . Corruption Blocked . | . . . . . . Overload Shots . | . . . . . . Overflow Damage 54 | . . . . . 54 Projectiles . | . . . . . . Explosions 54 | . . . . . 54 Melee . | . . . . . . Knockbacks . | . . . . . . Impact . | . . . . . . Kinetic . | . . . . . . Secondary . | . . . . . . Self-Inflicted Damage 169 | . . . . . 169 Shots 3 | . . . . . 3 Rammed . | . . . . . . Targets Rammed 1 | 1 . . . . . Kicked . | . . . . . . Crushed 1 | 1 . . . . . Highest Temperature 408 | . 252 . . . 408 Average Temperature 107 | . 74 . . . 131 Received Heat Transfer 414 | . 270 18 . . 126 Effects 1 | . . . . . 1 Shutdowns 1 | . . . . . 1 Siege Activations . | . . . . . . Robots Corrupted . | . . . . . . Combat Hostiles . | . . . . . . Parts Fried 5 | . . . . . 5 Impact Corruptions . | . . . . . . Robots Melted . | . . . . . . Combat Hostiles . | . . . . . . Parts Melted . | . . . . . . Heat Transferred 1485 | . 490 . . . 995 Parts Sabotaged . | . . . . . . Parts Stolen . | . . . . . . Parts Stripped . | . . . . . . Power Chain Reactions 2 | . . . . . 2 Alert | -11 -10 -10 -10 -9 -8 ------- Run | Yrd Mat Min Exi Min Mat Peak Influence 255 | 5 161 46 . . 255 Initial 46 | . 3 46 . . . Average 62 | . 60 30 . . 112 Maximum Alert Level 1 | . . . . . 1 Low Security (%) 98 | 100 100 100 . 100 92 Level 1 1 | . . . . . 7 Level 2 . | . . . . . . Level 3 . | . . . . . . Level 4 . | . . . . . . Level 5 . | . . . . . . High Security . | . . . . . . Max Security . | . . . . . . Squads Dispatched 6 | . 2 . . . 4 Investigation 2 | . 1 . . . 1 Extermination . | . . . . . . Reinforcement 4 | . 1 . . . 3 Assault . | . . . . . . Garrison . | . . . . . . Intercept . | . . . . . . Searches Triggered . | . . . . . . Construction Impeded . | . . . . . . Haulers Reinforced . | . . . . . . Active Scanning Responses . | . . . . . . Cargo Convoy Interrupts . | . . . . . . Stealth | -11 -10 -10 -10 -9 -8 --------- Run | Yrd Mat Min Exi Min Mat Distress Signals 2 | . 1 . . . 1 Communications Jammed . | . . . . . . Distress Signals . | . . . . . . Times Spotted 54 | . 33 1 . . 20 Peak Tracking Total 8 | . 4 1 . . 8 Tactical Retreats 3 | . . . . . 3 Traps | -11 -10 -10 -10 -9 -8 ------- Run | Yrd Mat Min Exi Min Mat Traps Triggered 2 | . 2 . . . . Indirectly . | . . . . . . Trap Hack Attempts . | . . . . . . Triggered . | . . . . . . Disarmed . | . . . . . . Reprogrammed . | . . . . . . Reused . | . . . . . . Traps Extracted . | . . . . . . Installed . | . . . . . . Triggered . | . . . . . . Machines | -11 -10 -10 -10 -9 -8 ---------- Run | Yrd Mat Min Exi Min Mat Machines Disabled 1 | . . . . . 1 Max in Single Turn 1 | . . . . . 1 Machines Repaired . | . . . . . . Machines Dismantled . | . . . . . . Machines Sabotaged . | . . . . . . Overloaded Fab Kills . | . . . . . . Hacking | -11 -10 -10 -10 -9 -8 --------- Run | Yrd Mat Min Exi Min Mat Machines Accessed 15 | . 8 . 1 1 5 Terminals 11 | . 7 . . . 4 Fabricators . | . . . . . . Repair Stations 1 | . 1 . . . . Recycling Units . | . . . . . . Scanalyzers 1 | . . . . . 1 Garrison Access . | . . . . . . Total Hacks 38 | . 24 . 1 1 12 Successful 22 | . 13 . 1 1 7 Failed 16 | . 11 . . . 5 Catastrophic 3 | . 3 . . . . Database Lockouts . | . . . . . . Manual 21 | . 13 . 1 . 7 Terminals 31 | . 22 . . . 9 Fabricators . | . . . . . . Repair Stations 2 | . 2 . . . . Recycling Units . | . . . . . . Scanalyzers 3 | . . . . . 3 Garrison Access . | . . . . . . Terminal Hacks 15 | . 9 . 1 1 4 Robot Analysis 4 | . 2 . . . 2 Prototype ID Bank 1 | . 1 . . . . Open Door 1 | . . . . 1 . Emergency Access Points 1 | . 1 . . . . Terminal Index 1 | . 1 . . . . Alert Level 2 | . 2 . . . . Locate Traps 1 | . 1 . . . . Maintenance Status 1 | . . . . . 1 Security Status 1 | . 1 . . . . Hauler Manifests 1 | . . . . . 1 Derelict Proto ID Bank 1 | . . . 1 . . Fabricator Hacks . | . . . . . . Repair Station Hacks 1 | . 1 . . . . Refit 1 | . 1 . . . . Recycling Unit Hacks . | . . . . . . Scanalyzer 2 | . . . . . 2 Insert Component 1 | . . . . . 1 Analyze 1 | . . . . . 1 Garrison Access Hacks . | . . . . . . Unauthorized Hacks 4 | . 3 . . . 1 Terminals 4 | . 3 . . . 1 Assimilate 1 | . 1 . . . . Botnet 2 | . 1 . . . 1 Operators 1 | . 1 . . . . Fabricators . | . . . . . . Repair Stations . | . . . . . . Recycling Units . | . . . . . . Scanalyzers . | . . . . . . Garrison Access . | . . . . . . Data Cores Recovered 1 | . . . . . 1 Used . | . . . . . . Hacking Detections 9 | . 5 . . . 4 Full Trace Events 3 | . 2 . . . 1 Feedback Events . | . . . . . . Feedback Blocked . | . . . . . . Robot Schematics Acquired . | . . . . . . Robots Built . | . . . . . . Authchips . | . . . . . . Time . | . . . . . . Total Robot Build Rating . | . . . . . . Part Schematics Acquired 1 | . . . . . 1 Parts Built . | . . . . . . Authchips . | . . . . . . Time . | . . . . . . Total Part Build Rating . | . . . . . . Parts Repaired . | . . . . . . Time . | . . . . . . Parts Recycled . | . . . . . . Recycled Matter . | . . . . . . Retrieved Matter . | . . . . . . Retrieved Components . | . . . . . . Parts Scanalyzed 1 | . . . . . 1 Part Schematics Acquired 1 | . . . . . 1 Parts Damaged . | . . . . . . Bothacking | -11 -10 -10 -10 -9 -8 ------------ Run | Yrd Mat Min Exi Min Mat Used RIF Installer . | . . . . . . Robots Hacked . | . . . . . . Non-combat . | . . . . . . Combat . | . . . . . . Robot Hacks Applied . | . . . . . . Relay Couplers Released . | . . . . . . Fabnet Peak Effective % . | . . . . . . Robots Rewired . | . . . . . . Allies Hacked . | . . . . . . Hacks Repelled . | . . . . . . Allies | -11 -10 -10 -10 -9 -8 -------- Run | Yrd Mat Min Exi Min Mat Total Allies 1 | . 1 . . . . Largest Group 1 | . 1 1 1 1 1 Highest-Rated Group 10 | . 10 10 10 10 10 Highest-Rated Ally 10 | . 10 10 10 10 10 Total Orders 2 | . . 2 . . . STAY 1 | . . 1 . . . FOLLOW 1 | . . 1 . . . Ally Attacks . | . . . . . . Total Damage . | . . . . . . Kills . | . . . . . . Allies Corrupted . | . . . . . . Allies Melted . | . . . . . . Intel | -11 -10 -10 -10 -9 -8 ------- Run | Yrd Mat Min Exi Min Mat Robot Analysis Total 4 | . 2 . . . 2 Derelict Logs Recovered 3 | . . 3 . . . Drone Launches . | . . . . . . Drone Recoveries . | . . . . . . Exploration | -11 -10 -10 -10 -9 -8 ------------- Run | Yrd Mat Min Exi Min Mat Turns Passed 3955 | 99 1670 753 464 139 830 Spaces Moved 2738 | 56 874 438 286 73 1011 Core 2 | 2 . . . . . Treads 1725 | 54 874 438 286 73 . Legs . | . . . . . . Wheels . | . . . . . . Hover . | . . . . . . Flight 1011 | . . . . . 1011 Fastest Speed 50 | 50 160 160 160 160 50 Average Speed 119 | 156 160 160 160 160 50 Slowest Speed 240 | 160 240 240 160 160 50 Overloaded Moves . | . . . . . . Propulsion Burnouts . | . . . . . . Robots Hopped . | . . . . . . Cave-ins Triggered . | . . . . . . Exploration Rate (%) 43 | 4 80 52 62 11 49 Regions Visited 5 Branch Regions 3 Pre-discovered Areas 2 | . . 2 . . . Known Exits Taken . | . . . . . . Unknown Exits Taken 5 | 1 1 1 1 1 . Scrap Searched 1 | . . 1 . . . Spaces Dug 6 | . . . . . 6 Terrain Destroyed 31 | . . . . . 31 Melee 6 | . . . . . 6 Projectile . | . . . . . . AOE 25 | . . . . . 25 Terrain Rammed . | . . . . . . Walls Destroyed . | . . . . . . Machines Disabled . | . . . . . . Actions | -11 -10 -10 -10 -9 -8 --------- Run | Yrd Mat Min Exi Min Mat Total 3238 | 64 1034 489 293 95 1263 Wait 277 | . 50 44 1 21 161 Move 2733 | 55 873 437 285 72 1011 Hop . | . . . . . . Pick Up 34 | 2 13 1 4 . 14 Fast Attach 32 | 6 16 3 . 1 6 Attach 6 | . 2 . . . 4 Detach 2 | . . . . . 2 Swap 16 | . 4 1 1 . 10 Drop 42 | . 19 3 2 1 17 Fire 80 | . 57 . . . 23 Melee 15 | . . . . . 15 Ram . | . . . . . . Kick . | . . . . . . Crush 1 | 1 . . . . . Escape Stasis . | . . . . . . Rewire . | . . . . . . Trap . | . . . . . . Miscellaneous . | . . . . . . Route ------- -11/Scrapyard -10/Materials (discovered 3 exits: *Mat x2 / [*Min]) -10/Mines (discovered 3 exits: Mat / *Exi / [*Sub]) -10/Exiles -9/Mines -8/Materials (discovered 1 exit: [*Fac]) History --------- Turn | Location | Event 12 | -11/Scrapyard | Discovered new exit (range 15) 100 | -11/Scrapyard | Entered Materials 301 | -10/Materials | Build established: Mutant 620 | -10/Materials | Discovered new exit (range 7) 922 | -10/Materials | Discovered new exit (range 5) 1468 | -10/Materials | Discovered new exit (range 15) 1770 | -10/Materials | Entered Mines 1770 | -10/Mines | Accompanied by 1 ally 1783 | -10/Mines | Learned location of Zion (-6) 1812 | -10/Mines | Build established: Scavenger-Mutant 1812 | -10/Mines | Learned Materials emergency access door positions 1890 | -10/Mines | Learned location of Storage (-7) 2006 | -10/Mines | Found a damaged Exp. Sensor Array with a note attached 2044 | -10/Mines | Identified exit to Materials 2222 | -10/Mines | Joined a pair of Derelicts in attacking an 0b10 outpost 2430 | -10/Mines | A weapon hastily lodged in a ceiling crevice suddenly fell to the ground 2447 | -10/Mines | Discovered new exit (range 3) 2489 | -10/Mines | Deemed a non-threat by the Exiles lab entrance 2490 | -10/Mines | Discovered new exit (range 5) 2523 | -10/Mines | Entered Exiles 2523 | -10/Exiles | Accompanied by 1 ally 2589 | -10/Exiles | Met 8R-AWN 2619 | -10/Exiles | Met EX-HEX 2683 | -10/Exiles | Met EX-BIN 2718 | -10/Exiles | Aligned with FarCom system 2720 | -10/Exiles | Given EX-Vault access code 2771 | -10/Exiles | Opened EX-Vault 2785 | -10/Exiles | Found Flying Fortress v7 2821 | -10/Exiles | Warned to stay clear of 0b10 Research branches 2840 | -10/Exiles | Exiles lab attacked by MAIN.C 2957 | -10/Exiles | Discovered new exit (range 14) 2987 | -10/Exiles | Left Exiles lab with Flying Fortress v7 2987 | -10/Exiles | Entered Mines 2987 | -9/Mines | Accompanied by 1 ally 3070 | -9/Mines | Discovered new exit (range 10) 3088 | -9/Mines | Found the Drone Emporium 3111 | -9/Mines | Found Prototype Device 3111 | -9/Mines | Identified Splice Drone Bay 3126 | -9/Mines | Entered Materials 3126 | -8/Materials | Accompanied by 1 ally 3126 | -8/Materials | Evolved 4 slots: Propulsion x2, Utility x2 3721 | -8/Materials | Build established: Mutant 3939 | -8/Materials | Discovered new exit (range 10) 3956 | -8/Materials | Self-destructed Last Messages --------------- Lgt. Nuclear Core destroyed. Destroyed Lgt. Nuclear Core. The unstable cave ceiling collapses. U-05 Engineer lays Concrete. U-05 Engineer builds a Wall. The unstable cave ceiling collapses. U-05 Engineer lays Concrete. U-05 Engineer builds a Wall. ALERT: Suspicious intruders detected, dispatching Cutter reinforcements to area. Dropped Rigged Nuclear Core. EXIT=FOUND Rigged Nuclear Core explodes. Integration Channel disabled. Insulated Plating destroyed. Chain reaction triggered in Imp. Ion Engine. C-17 Slicer destroyed. Penetrated by Slug. Lgt. Ion Engine destroyed. Knocked back. Map ----- +----------------------------------------------------+ | ?????????????????????????????????????????????????? | | ?????????????????????????????????????????????????? | | ?????????????????????????????????????????????????? | | ?????????????????????????????????????????????????? | | ????????????????????????????????########?????????? | | ###???????????????????###########//[[[ #?????????? | | #???????????????????# ## [ /#?????????? | | # #???????????????????# T ! ##[/ #?????????? | | # #???????????????????# g##[[ ####?????????? | | # #???????????????????# g # [ ###########??? | | # ##??????????????????# """ # T" #??? | | ####################=""""" # " #??? | | s %%+[""""" # ######## ##??? | | ####################*""""" ## #######"# #???? | | #??# ?########????#* """ ## # """ ## #???? | | #??# < # ! !!#????########/## + """ ## ##### | | ##?? # !!#?????????# # """ ## ## | | #### + #?????????# # [## ## | | " "T" #?????????# ###### ## ##""" | | # #?????????# #????# ## ##""" | | #* H ??????????+ #????######### ##""" | | ###########" ! "############ #???????????## | | #???????#*%= "" """ ## ##??????????# | | #???????# = """"""" # ############ # | | #???????# ;% Y """"" + g | | ##??????### =@# = | | "#????????# % # #######+# ## | | ##????????###############+#####?????# #### | | #???????????????????# #?????# ### | | ! #???????????????????# #?????#g### | | ############????????# #?????# #?# | | ###############????????# #?????# ?# | | ???## ! ##????????# #?????# + | | ???## """ ##????????# #?????# # | | ##### """ ##????????# #?????# ?# | | ##### """ ##????????# #?????# ?# | | # ##???????###+########?????? ?####### | | "" #"" ##???????# #???????? ???????? | | "" #"T ##???????# #???????? ???????? | | "" #"" ##???????# #???????? ???????? | | = # ##???????# #?????????????????? | | ####/######???????# #?????????????????? | | ##+### ####???????# #?????????????????? | | ^ ???????????# #?????????????????? | | ? ^ [???????????# #?????????????????? | | ^ #??????????# #?????????????????? | | "" #??????????#####+####?????????????????? | | "" #?????????????????????????????????????? | | "" ?????????????????????????????????????? | | "T" ?????????????????????????????????????? | +----------------------------------------------------+ Best States ------------- Heat Dissipation 41 Energy Generation 14 Energy Capacity 250 Matter Stores 300 Matter Capacity 300 Sight Range 16 Terrain Scan Density 10 Armor Coverage 150 Resistance: EM 15 Evasion (%) 60 Recoil Reduction 2 Offensive Hacking 10 Item Schematics ----------------- Nuclear Core | -8/Materials | Scanalyzed Robot Schematics ------------------ None Fabricated ------------ Nothing Alien Tech Used ----------------- None Achievements -------------- None Challenges ------------ None Game ------ Seed CompactUtilityNullifier Manual? 0 Play Time 00:37:52 Cumulative 34.4 hours Start 2024.09.27 @ 13:27:37 End 2024.09.27 @ 21:20:50 Sessions 3 Manual Loads 0 Difficulty Rogue Special Mode None Game No. 40 Rogue 40 Adventurer 0 Explorer 0 Win Type - Total 0 Types 0/0/0/0/0/0/0/0/0 Lore% 20 Gallery% 35 Achievement% 33 Wizard Run 0 Options --------- Layout 0 ASCII 0 Keyboard 0 Movement Arrows Keybinds 0 Fullscreen 1 Font 18/SmallcapsGlow Map View 76x50 Zoom Use 0% Tactical HUD 0 Map Filters NONE Filters NONE Steam 0 RUN: 7d9a5efb-474f-48b1-91f3-1bb4521a9cd0